fUSD/lending_fUSD_20241224
["ID","MTS","AMOUNT","RATE_DAILY","PERIOD"]
[346512466,1735017084880,-500.0,0.00015342,2]
[346512467,1735017084890,-500.0,0.00015342,2]
[346512468,1735017084900,-500.0,0.00015342,2]
[346512469,1735017084911,-500.0,0.00015342,2]
[346512470,1735017084921,-500.0,0.00015342,2]
[346512471,1735017084930,-500.0,0.00015342,2]
[346512472,1735017084940,-1568.06,0.00015342,2]
[346512473,1735017084950,-500.0,0.00015342,2]
[346512474,1735017084959,-790.82,0.00015342,2]
[346512475,1735017084970,-500.0,0.00015342,2]
[346512476,1735017084980,-253.96,0.00015342,2]
[346512477,1735017084990,-500.0,0.00015342,2]
[346512478,1735017085000,-500.0,0.00015342,2]
[346512479,1735017085009,-824.42,0.00015342,2]
[346512480,1735017085019,-1098.82,0.00015342,2]
[346512481,1735017085029,-285.19951836,0.00015342,2]
[346512482,1735017085039,-500.0,0.00015342,2]
[346512483,1735017085049,-500.0,0.00015342,2]
[346512484,1735017085059,-745.24,0.00015342,2]
[346512485,1735017085069,-500.0,0.00015342,2]
[346512486,1735017085080,-500.0,0.00015342,2]
[346512487,1735017085090,-500.0,0.00015342,2]
[346512488,1735017085100,-1414.48,0.00015342,2]
[346512489,1735017085111,-500.0,0.00015342,2]
[346512490,1735017085120,-500.0,0.00015342,2]
[346512491,1735017085130,-500.0,0.00015342,2]
[346512492,1735017085140,-1084.53,0.00015342,2]
[346512493,1735017085150,-500.0,0.00015342,2]
[346512494,1735017085160,-666.79,0.00015342,2]
[346512495,1735017085169,-500.0,0.00015342,2]
[346512496,1735017085179,-1900.45,0.00015342,2]
[346512497,1735017085189,-1378.72,0.00015342,2]
[346512498,1735017085199,-767.26,0.00015342,2]
[346512499,1735017085209,-3033.38,0.00015342,2]
[346512500,1735017085219,-500.0,0.00015342,2]
[346512501,1735017085228,-2055.63,0.00015342,2]
[346512502,1735017085239,-500.0,0.00015342,2]
[346512503,1735017085248,-500.0,0.00015342,2]
[346512504,1735017085259,-1125.23,0.00015342,2]
[346512505,1735017085269,-500.0,0.00015342,2]
[346512506,1735017085280,-500.0,0.00015342,2]
[346512507,1735017085290,-500.0,0.00015342,2]
[346512508,1735017085300,-500.0,0.00015342,2]
[346512509,1735017085311,-525.30106685,0.00015342,2]
[346512510,1735017085320,-500.0,0.00015342,2]
[346512511,1735017085330,-612.69,0.00015342,2]
[346512512,1735017085340,-500.0,0.00015342,2]
[346512513,1735017085350,-500.0,0.00015342,2]
[346512514,1735017085359,-500.0,0.00015342,2]
[346512515,1735017085370,-500.0,0.00015342,2]
[346512516,1735017085379,-500.0,0.00015342,2]
[346512517,1735017085389,-516.38,0.00015342,2]
[346512518,1735017085399,-500.0,0.00015342,2]
[346512519,1735017085409,-500.0,0.00015342,2]
[346512520,1735017085419,-500.0,0.00015342,2]
[346512521,1735017085428,-764.84,0.00015342,2]
[346512522,1735017085438,-500.0,0.00015342,2]
[346512523,1735017085448,-646.78636126,0.00015342,2]
[346512524,1735017085458,-500.0,0.00015342,2]
[346512525,1735017085468,-155.35,0.00015342,2]
[346512526,1735017085478,-500.0,0.00015342,2]
[346512527,1735017085489,-1499.77,0.00015342,2]
[346512528,1735017085500,-500.0,0.00015342,2]
[346512529,1735017085510,-1598.59,0.00015342,2]
[346512530,1735017085520,-500.0,0.00015342,2]
[346512531,1735017085531,-500.0,0.00015342,2]
[346512532,1735017085542,-1242.36,0.00015342,2]
[346512533,1735017085552,-559.25,0.00015342,2]
[346512534,1735017085565,-881.82,0.00015342,2]
[346512535,1735017085575,-500.0,0.00015342,2]
[346512536,1735017085585,-736.96,0.00015342,2]
[346512537,1735017085596,-500.0,0.00015342,2]
[346512538,1735017085607,-500.0,0.00015342,2]
[346512539,1735017085618,-223.31,0.00015342,2]
[346512540,1735017085628,-632.45,0.00015342,2]
[346512541,1735017085639,-504.97628316,0.00015342,2]
[346512542,1735017085650,-500.0,0.00015342,2]
[346512543,1735017085660,-500.0,0.00015342,2]
[346512544,1735017085671,-500.0,0.00015342,2]
[346512545,1735017085683,-500.0,0.00015342,2]
[346512546,1735017085692,-500.0,0.00015342,2]
[346512547,1735017085702,-500.0,0.00015342,2]
[346512548,1735017085712,-584.48,0.00015342,2]
[346512549,1735017085723,-500.0,0.00015342,2]
[346512550,1735017085733,-734.02,0.00015342,2]
[346512551,1735017085743,-1243.83,0.00015342,2]
[346512552,1735017085754,-500.0,0.00015342,2]
[346512553,1735017085764,-607.12,0.00015342,2]
[346512554,1735017085774,-698.02,0.00015342,2]
[346512555,1735017085785,-500.0,0.00015342,2]
[346512556,1735017085795,-500.0,0.00015342,2]
[346512557,1735017085806,-500.0,0.00015342,2]
[346512558,1735017085816,-500.0,0.00015342,2]
[346512559,1735017085826,-500.0,0.00015342,2]
[346512560,1735017085836,-1517.51,0.00015342,2]
[346512561,1735017085846,-2185.96,0.00015342,2]
[346512562,1735017085856,-500.0,0.00015342,2]
[346512563,1735017085866,-1895.65,0.00015342,2]
[346512564,1735017085876,-422.22097989,0.00015342,2]
[346512565,1735017085886,-500.0,0.00015342,2]
[346512566,1735017085896,-524.51,0.00015342,2]
[346512567,1735017085906,-500.0,0.00015342,2]
[346512568,1735017085916,-1341.35,0.00015342,2]
[346512569,1735017085926,-1146.95,0.00015342,2]
[346512570,1735017085936,-500.0,0.00015342,2]
[346512571,1735017085946,-847.15,0.00015342,2]
[346512572,1735017085956,-804.88,0.00015342,2]
[346512573,1735017085966,-845.49,0.00015342,2]
[346512574,1735017085976,-500.0,0.00015342,2]
[346512575,1735017085986,-500.0,0.00015342,2]
[346512576,1735017085995,-512.15,0.00015342,2]
[346512577,1735017086005,-728.57,0.00015342,2]
[346512578,1735017086015,-500.0,0.00015342,2]
[346512579,1735017086025,-500.0,0.00015342,2]
[346512580,1735017086035,-953.52,0.00015342,2]
[346512581,1735017086045,-500.0,0.00015342,2]
[346512582,1735017086056,-306.99458547,0.00015342,2]
[346512583,1735017086066,-1722.6,0.00015342,2]
[346512584,1735017086076,-1169.18,0.00015342,2]
[346512585,1735017086086,-967.22,0.00015342,2]
[346512586,1735017086096,-970.63,0.00015342,2]
[346512587,1735017086106,-682.34,0.00015342,2]
[346512588,1735017086116,-1186.53,0.00015342,2]
[346512589,1735017086127,-2751.61,0.00015342,2]
[346512590,1735017086137,-516.04,0.00015342,2]
[346512591,1735017086146,-8307.43,0.00015342,2]
[346512592,1735017086157,-951.65,0.00015342,2]
[346512593,1735017086166,-838.55,0.00015342,2]
[346512594,1735017086176,-1312.48,0.00015342,2]
[346512595,1735017086186,-500.0,0.00015342,2]
[346512596,1735017086196,-693.38,0.00015342,2]
[346512597,1735017086206,-895.42,0.00015342,2]
[346512598,1735017086216,-2714.59,0.00015342,2]
[346512599,1735017086226,-1034.79,0.00015342,2]
[346512600,1735017086236,-1494.15,0.00015342,2]
[346512601,1735017086245,-970.92,0.00015342,2]
[346512602,1735017086255,-530.08,0.00015342,2]
[346512603,1735017086265,-2028.23,0.00015342,2]
[346512604,1735017086275,-8065.04,0.00015342,2]
[346512605,1735017086285,-14022.51,0.00015342,2]
[346512606,1735017086295,-1858.88,0.00015342,2]
[346512607,1735017086304,-417.753861,0.00015342,2]
[346512608,1735017086314,-638.49,0.00015342,2]
[346512609,1735017086323,-1961.86,0.00015342,2]
[346512610,1735017086333,-506.13,0.00015342,2]
[346512611,1735017086343,-470.967598,0.00015342,2]
[346512612,1735017086353,-1516.28,0.00015342,2]
[346512613,1735017086362,-500.0,0.00015342,2]
[346512614,1735017086373,-500.0,0.00015342,2]
[346512615,1735017086383,-2763.5,0.00015342,2]
[346512616,1735017086392,-595.96,0.00015342,2]
[346512617,1735017086402,-991.86,0.00015342,2]
[346512618,1735017086412,-1589.93,0.00015342,2]
[346512619,1735017086423,-500.0,0.00015342,2]
[346512620,1735017086433,-2026.52,0.00015342,2]
[346512621,1735017086444,-841.8,0.00015342,2]
[346512622,1735017086454,-500.0,0.00015342,2]
[346512623,1735017086771,-1673.95,0.00015342,2]
[346512624,1735017086790,-704.95,0.00015342,2]
[346512625,1735017086799,-881.88,0.00015342,2]
[346512626,1735017086808,-292.84401024,0.00015342,2]
[346512627,1735017086818,-947.94,0.00015342,2]
[346512628,1735017086827,-1132.27,0.00015342,2]
[346512629,1735017086837,-1217.14,0.00015342,2]
[346512630,1735017086846,-527.89,0.00015342,2]
[346512631,1735017086856,-500.0,0.00015342,2]
[346512632,1735017086865,-1554.58,0.00015342,2]
[346512633,1735017086875,-1554.93,0.00015342,2]
[346512634,1735017086885,-783.81,0.00015342,2]
[346512635,1735017086895,-8937.01,0.00015342,2]
[346512636,1735017086904,-1043.93,0.00015342,2]
[346512637,1735017086914,-1595.12,0.00015342,2]
[346512638,1735017086923,-820.47,0.00015342,2]
[346512639,1735017086933,-570.88,0.00015342,2]
[346512640,1735017086942,-500.0,0.00015342,2]
[346512641,1735017086951,-3160.1,0.00015342,2]
[346512642,1735017086960,-2812.48,0.00015342,2]
[346512643,1735017086970,-1278.73,0.00015342,2]
[346512644,1735017086979,-500.0,0.00015342,2]
[346512645,1735017086989,-2713.57,0.00015342,2]
[346512646,1735017087000,-708.16,0.00015342,2]
[346512647,1735017087009,-2055.84,0.00015342,2]
[346512648,1735017087019,-500.0,0.00015342,2]
[346512649,1735017087028,-1461.32,0.00015342,2]
[346512650,1735017087038,-1831.86,0.00015342,2]
[346512651,1735017087048,-500.0,0.00015342,2]
[346512652,1735017087057,-5286.14,0.00015342,2]
[346512653,1735017087067,-2687.24,0.00015342,2]
[346512654,1735017087076,-929.6,0.00015342,2]
[346512655,1735017087086,-1334.92,0.00015342,2]
[346512656,1735017087095,-599.85,0.00015342,2]
[346512657,1735017087104,-500.0,0.00015342,2]
[346512658,1735017087114,-6644.58,0.00015342,2]
[346512659,1735017087124,-2084.05,0.00015342,2]
[346512660,1735017087133,-1574.04,0.00015342,2]
[346512661,1735017087142,-500.0,0.00015342,2]
[346512662,1735017087152,-521.4,0.00015342,2]
[346512663,1735017087161,-500.0,0.00015342,2]
[346512664,1735017087170,-1759.16,0.00015342,2]
[346512665,1735017087180,-5396.91,0.00015342,2]
[346512666,1735017087189,-5068.92,0.00015342,2]
[346512667,1735017087198,-2140.51,0.00015342,2]
[346512668,1735017087208,-1218.27,0.00015342,2]
[346512669,1735017087217,-1094.07,0.00015342,2]
[346512670,1735017087226,-10243.1,0.00015342,2]
[346512671,1735017087236,-721.28,0.00015342,2]
[346512672,1735017087245,-500.0,0.00015342,2]
[346512673,1735017087255,-5625.96,0.00015342,2]
[346512674,1735017087264,-1216.52,0.00015342,2]
[346512675,1735017087273,-790.49,0.00015342,2]
[346512676,1735017087283,-500.0,0.00015342,2]
[346512677,1735017087292,-653.69,0.00015342,2]
[346512678,1735017087303,-506.69,0.00015342,2]
[346512679,1735017087312,-500.0,0.00015342,2]
[346512680,1735017087322,-2281.06,0.00015342,2]
[346512681,1735017087331,-500.0,0.00015342,2]
[346512682,1735017087340,-500.0,0.00015342,2]
[346512683,1735017087350,-500.0,0.00015342,2]
[346512684,1735017087359,-1025.3,0.00015342,2]
[346512685,1735017087369,-500.0,0.00015342,2]
[346512686,1735017087379,-3534.91,0.00015342,2]
[346512687,1735017087388,-1884.7,0.00015342,2]
[346512688,1735017087398,-1009.93,0.00015342,2]
[346512689,1735017087407,-747.18,0.00015342,2]
[346512690,1735017087417,-1487.41,0.00015342,2]
[346512691,1735017087426,-1157.43,0.00015342,2]
[346512692,1735017087436,-500.0,0.00015342,2]
[346512693,1735017087445,-1148.68,0.00015342,2]
[346512694,1735017087454,-574.67,0.00015342,2]
[346512695,1735017087463,-520.9,0.00015342,2]
[346512696,1735017087472,-500.0,0.00015342,2]
[346512697,1735017087482,-1366.93,0.00015342,2]
[346512698,1735017087493,-1321.6,0.00015342,2]
[346512699,1735017087502,-500.0,0.00015342,2]
[346512700,1735017087511,-3473.97,0.00015342,2]
[346512701,1735017087521,-2009.91,0.00015342,2]
[346512702,1735017087529,-1834.74,0.00015342,2]
[346512703,1735017087538,-12237.72,0.00015342,2]
[346512704,1735017087547,-1429.03,0.00015342,2]
[346512705,1735017087561,-500.0,0.00015342,2]
[346512706,1735017087572,-3213.22,0.00015342,2]
[346512707,1735017087581,-926.41,0.00015342,2]
[346512708,1735017087590,-669.32,0.00015342,2]
[346512709,1735017087600,-5079.70714496,0.000154,2]
[346512710,1735017087609,-747.04,0.00015485,2]
[346512711,1735017087619,-587.0,0.00015517,2]
[346512712,1735017087628,-1000.0,0.00015521,2]
[346512713,1735017087638,-297.49962349,0.00015589,2]
[346512714,1735017087647,-500.0,0.00015616,2]
[346512715,1735017087656,-500.0,0.00015616,2]
[346512716,1735017087665,-500.0,0.00015616,2]
[346512717,1735017087674,-557.785434,0.00015616,2]
[346512718,1735017087683,-500.0,0.00015616,2]
[346512719,1735017087692,-664.615719,0.00015616,2]
[346512720,1735017087701,-500.0,0.00015616,2]
[346512721,1735017087710,-500.0,0.00015616,2]
[346512722,1735017087719,-500.0,0.00015616,2]
[346512723,1735017087728,-500.0,0.00015616,2]
[346512724,1735017087738,-500.0,0.00015616,2]
[346512725,1735017087748,-500.0,0.00015616,2]
[346512726,1735017087757,-500.0,0.00015616,2]
[346512727,1735017087766,-500.0,0.00015616,2]
[346512728,1735017087775,-656.66,0.00015616,2]
[346512729,1735017087784,-534.1,0.00015616,2]
[346512730,1735017087794,-547.42,0.00015616,2]
[346512731,1735017087803,-500.0,0.00015616,2]
[346512732,1735017087813,-500.0,0.00015616,2]
[346512733,1735017087822,-500.0,0.00015616,2]
[346512734,1735017087832,-728.94,0.00015616,2]
[346512735,1735017087842,-559.81,0.00015616,2]
[346512736,1735017087852,-500.0,0.00015616,2]
[346512737,1735017087861,-500.0,0.00015616,2]
[346512738,1735017087871,-306.8,0.00015616,2]
[346512739,1735017087881,-500.0,0.00015616,2]
[346512740,1735017087891,-500.0,0.00015616,2]
[346512741,1735017087901,-556.14,0.00015616,2]
[346512742,1735017087911,-922.02,0.00015616,2]
[346512743,1735017087920,-660.38,0.00015616,2]
[346512744,1735017087930,-719.55,0.00015616,2]
[346512745,1735017087939,-500.0,0.00015616,2]
[346512746,1735017087949,-500.0,0.00015616,2]
[346512747,1735017087958,-500.0,0.00015616,2]
[346512748,1735017087968,-847.72,0.00015616,2]
[346512749,1735017087977,-500.0,0.00015616,2]
[346512750,1735017087989,-803.4,0.00015616,2]
[346512751,1735017087998,-500.0,0.00015616,2]
[346512752,1735017088007,-500.0,0.00015616,2]
[346512753,1735017088017,-500.0,0.00015616,2]
[346512754,1735017088026,-359.34,0.00015616,2]
[346512755,1735017088036,-500.0,0.00015616,2]
[346512756,1735017088045,-500.0,0.00015616,2]
[346512757,1735017088055,-500.0,0.00015616,2]
[346512758,1735017088065,-500.0,0.00015616,2]
[346512759,1735017088074,-528.11,0.00015616,2]
[346512760,1735017088084,-500.0,0.00015616,2]
[346512761,1735017088093,-500.0,0.00015616,2]
[346512762,1735017088103,-513.89563683,0.00015616,2]
[346512763,1735017088112,-639.75,0.00015616,2]
[346512764,1735017088122,-322.49594246,0.00015616,2]
[346512765,1735017088131,-500.0,0.00015616,2]
[346512766,1735017088141,-2089.39,0.00015616,2]
[346512767,1735017088151,-739.91,0.00015616,2]
[346512768,1735017088160,-414.58,0.00015616,2]
[346512769,1735017088169,-500.0,0.00015616,2]
[346512770,1735017088178,-500.0,0.00015616,2]
[346512771,1735017088188,-500.0,0.00015616,2]
[346512772,1735017088198,-500.0,0.00015616,2]
[346512773,1735017088207,-605.17,0.00015616,2]
[346512774,1735017088217,-815.06,0.00015616,2]
[346512775,1735017088227,-500.0,0.00015616,2]
[346512776,1735017088237,-500.0,0.00015616,2]
[346512777,1735017088248,-500.0,0.00015616,2]
[346512778,1735017088257,-699.59,0.00015616,2]
[346512779,1735017088267,-500.0,0.00015616,2]
[346512780,1735017088276,-1038.23,0.00015616,2]
[346512781,1735017088286,-500.0,0.00015616,2]
[346512782,1735017088295,-564.10335301,0.00015616,2]
[346512783,1735017088305,-500.0,0.00015616,2]
[346512784,1735017088314,-500.0,0.00015616,2]
[346512785,1735017088323,-928.44,0.00015616,2]
[346512786,1735017088333,-500.0,0.00015616,2]
[346512787,1735017088343,-500.0,0.00015616,2]
[346512788,1735017088352,-1245.64,0.00015616,2]
[346512789,1735017088362,-638.02932126,0.00015616,2]
[346512790,1735017088371,-628.43,0.00015616,2]
[346512791,1735017088381,-500.0,0.00015616,2]
[346512792,1735017088390,-516.41,0.00015616,2]
[346512793,1735017088400,-500.0,0.00015616,2]
[346512794,1735017088409,-500.0,0.00015616,2]
[346512795,1735017088419,-500.0,0.00015616,2]
[346512796,1735017088428,-568.2,0.00015616,2]
[346512797,1735017088438,-859.05,0.00015616,2]
[346512798,1735017088447,-500.0,0.00015616,2]
[346512799,1735017088456,-500.0,0.00015616,2]
[346512800,1735017088466,-500.0,0.00015616,2]
[346512801,1735017088476,-244.5,0.00015616,2]
[346512802,1735017088487,-500.0,0.00015616,2]
[346512803,1735017088497,-500.0,0.00015616,2]
[346512804,1735017088507,-500.0,0.00015616,2]
[346512805,1735017088516,-500.0,0.00015616,2]
[346512806,1735017088526,-500.0,0.00015616,2]
[346512807,1735017088535,-500.0,0.00015616,2]
[346512808,1735017088544,-500.0,0.00015616,2]
[346512809,1735017088554,-500.0,0.00015616,2]
[346512810,1735017088567,-500.0,0.00015616,2]
[346512811,1735017088576,-628.92,0.00015616,2]
[346512812,1735017088586,-589.52,0.00015616,2]
[346512813,1735017088595,-500.0,0.00015616,2]
[346512814,1735017088604,-500.0,0.00015616,2]
[346512815,1735017088613,-391.35,0.00015616,2]
[346512816,1735017088622,-524.33,0.00015616,2]
[346512817,1735017088631,-500.0,0.00015616,2]
[346512818,1735017088642,-500.0,0.00015616,2]
[346512819,1735017088652,-500.0,0.00015616,2]
[346512820,1735017088661,-500.0,0.00015616,2]
[346512821,1735017088670,-500.0,0.00015616,2]
[346512822,1735017088679,-593.85,0.00015616,2]
[346512823,1735017088688,-500.0,0.00015616,2]
[346512824,1735017088697,-500.0,0.00015616,2]
[346512825,1735017088706,-500.0,0.00015616,2]
[346512826,1735017088716,-958.18,0.00015616,2]
[346512827,1735017088725,-500.0,0.00015616,2]
[346512828,1735017088735,-374.55,0.00015616,2]
[346512829,1735017088746,-500.0,0.00015616,2]
[346512830,1735017088755,-500.0,0.00015616,2]
[346512831,1735017088764,-500.0,0.00015616,2]
[346512832,1735017088773,-500.0,0.00015616,2]
[346512833,1735017088783,-537.25,0.00015616,2]
[346512834,1735017088792,-1121.59,0.00015616,2]
[346512835,1735017088802,-500.0,0.00015616,2]
[346512836,1735017088811,-600.85,0.00015616,2]
[346512837,1735017088820,-556.54,0.00015616,2]
[346512838,1735017088829,-500.0,0.00015616,2]
[346512839,1735017088838,-500.0,0.00015616,2]
[346512840,1735017088847,-500.0,0.00015616,2]
[346512841,1735017088857,-500.0,0.00015616,2]
[346512842,1735017088866,-561.23,0.00015616,2]
[346512843,1735017088875,-500.0,0.00015616,2]
[346512844,1735017088884,-915.52,0.00015616,2]
[346512845,1735017088893,-500.0,0.00015616,2]
[346512846,1735017088903,-315.07490541,0.00015616,2]
[346512847,1735017088916,-876.14,0.00015616,2]
[346512848,1735017088925,-500.0,0.00015616,2]
[346512849,1735017088934,-500.0,0.00015616,2]
[346512850,1735017088943,-500.0,0.00015616,2]
[346512851,1735017088952,-500.0,0.00015616,2]
[346512852,1735017088962,-500.0,0.00015616,2]
[346512853,1735017088971,-500.0,0.00015616,2]
[346512854,1735017088980,-500.0,0.00015616,2]
[346512855,1735017088995,-156.6,0.00015616,2]
[346512856,1735017089005,-439.57,0.00015616,2]
[346512857,1735017089015,-1568.06,0.00015616,2]
[346512858,1735017089024,-500.0,0.00015616,2]
[346512859,1735017089033,-790.82,0.00015616,2]
[346512860,1735017089043,-500.0,0.00015616,2]
[346512861,1735017089054,-500.0,0.00015616,2]
[346512862,1735017089063,-824.42,0.00015616,2]
[346512863,1735017089073,-1098.82,0.00015616,2]
[346512864,1735017089082,-500.0,0.00015616,2]
[346512865,1735017089091,-500.0,0.00015616,2]
[346512866,1735017089100,-745.24,0.00015616,2]
[346512867,1735017089109,-500.0,0.00015616,2]
[346512868,1735017089119,-580.6,0.00015616,2]
[346512869,1735017089128,-500.0,0.00015616,2]
[346512870,1735017089137,-1414.48,0.00015616,2]
[346512871,1735017089147,-500.0,0.00015616,2]
[346512872,1735017089156,-500.0,0.00015616,2]
[346512873,1735017089166,-500.0,0.00015616,2]
[346512874,1735017089175,-1084.53,0.00015616,2]
[346512875,1735017089183,-500.0,0.00015616,2]
[346512876,1735017089194,-666.79,0.00015616,2]
[346512877,1735017089204,-500.0,0.00015616,2]
[346512878,1735017089213,-1900.45,0.00015616,2]
[346512879,1735017089222,-1378.72,0.00015616,2]
[346512880,1735017089231,-767.26,0.00015616,2]
[346512881,1735017089244,-3033.38,0.00015616,2]
[346512882,1735017089257,-500.0,0.00015616,2]
[346512883,1735017089268,-2055.63,0.00015616,2]
[346512884,1735017089278,-264.18,0.00015616,2]
[346512885,1735017089287,-500.0,0.00015616,2]
[346512886,1735017089296,-1125.23,0.00015616,2]
[346512887,1735017089306,-500.0,0.00015616,2]
[346512888,1735017089316,-500.0,0.00015616,2]
[346512889,1735017089326,-500.0,0.00015616,2]
[346512890,1735017089335,-367.8,0.00015616,2]
[346512891,1735017089344,-612.69,0.00015616,2]
[346512892,1735017089354,-500.0,0.00015616,2]
[346512893,1735017089363,-500.0,0.00015616,2]
[346512894,1735017089372,-500.0,0.00015616,2]
[346512895,1735017089381,-500.0,0.00015616,2]
[346512896,1735017089390,-500.0,0.00015616,2]
[346512897,1735017089399,-516.38,0.00015616,2]
[346512898,1735017089408,-500.0,0.00015616,2]
[346512899,1735017089417,-500.0,0.00015616,2]
[346512900,1735017089426,-500.0,0.00015616,2]
[346512901,1735017089435,-764.84,0.00015616,2]
[346512902,1735017089444,-500.0,0.00015616,2]
[346512903,1735017089453,-500.0,0.00015616,2]
[346512904,1735017089463,-500.0,0.00015616,2]
[346512905,1735017089474,-1499.77,0.00015616,2]
[346512906,1735017089488,-500.0,0.00015616,2]
[346512907,1735017089503,-1598.59,0.00015616,2]
[346512908,1735017089515,-500.0,0.00015616,2]
[346512909,1735017089527,-500.0,0.00015616,2]
[346512910,1735017089539,-1242.36,0.00015616,2]
[346512911,1735017089552,-559.25,0.00015616,2]
[346512912,1735017089569,-881.82,0.00015616,2]
[346512913,1735017089582,-500.0,0.00015616,2]
[346512914,1735017089596,-736.96,0.00015616,2]
[346512915,1735017089609,-500.0,0.00015616,2]
[346512916,1735017089621,-500.0,0.00015616,2]
[346512917,1735017089633,-632.45,0.00015616,2]
[346512918,1735017089645,-500.0,0.00015616,2]
[346512919,1735017089658,-500.0,0.00015616,2]
[346512920,1735017089671,-500.0,0.00015616,2]
[346512921,1735017089684,-500.0,0.00015616,2]
[346512922,1735017089697,-500.0,0.00015616,2]
[346512923,1735017089709,-584.48,0.00015616,2]
[346512924,1735017089722,-500.0,0.00015616,2]
[346512925,1735017089735,-734.02,0.00015616,2]
[346512926,1735017089747,-1243.83,0.00015616,2]
[346512927,1735017089760,-500.0,0.00015616,2]
[346512928,1735017089773,-607.12,0.00015616,2]
[346512929,1735017089785,-698.02,0.00015616,2]
[346512930,1735017089798,-500.0,0.00015616,2]
[346512931,1735017089811,-500.0,0.00015616,2]
[346512932,1735017089824,-500.0,0.00015616,2]
[346512933,1735017089836,-500.0,0.00015616,2]
[346512934,1735017089849,-1517.51,0.00015616,2]
[346512935,1735017089862,-2185.96,0.00015616,2]
[346512936,1735017089874,-500.0,0.00015616,2]
[346512937,1735017089886,-1895.65,0.00015616,2]
[346512938,1735017089898,-500.0,0.00015616,2]
[346512939,1735017089908,-524.51,0.00015616,2]
[346512940,1735017089920,-500.0,0.00015616,2]
[346512941,1735017089931,-1341.35,0.00015616,2]
[346512942,1735017089945,-1146.95,0.00015616,2]
[346512943,1735017089959,-500.0,0.00015616,2]
[346512944,1735017089969,-847.15,0.00015616,2]
[346512945,1735017089979,-804.88,0.00015616,2]
[346512946,1735017089992,-845.49,0.00015616,2]
[346512947,1735017090004,-303.33225475,0.00015616,2]
[346512948,1735017090018,-500.0,0.00015616,2]
[346512949,1735017090031,-512.15,0.00015616,2]
[346512950,1735017090042,-728.57,0.00015616,2]
[346512951,1735017090052,-500.0,0.00015616,2]
[346512952,1735017090063,-500.0,0.00015616,2]
[346512953,1735017090074,-953.52,0.00015616,2]
[346512954,1735017090086,-500.0,0.00015616,2]
[346512955,1735017090097,-1722.6,0.00015616,2]
[346512956,1735017090108,-1169.18,0.00015616,2]
[346512957,1735017090119,-967.22,0.00015616,2]
[346512958,1735017090130,-970.63,0.00015616,2]
[346512959,1735017090141,-682.34,0.00015616,2]
[346512960,1735017090152,-1186.53,0.00015616,2]
[346512961,1735017090164,-2751.61,0.00015616,2]
[346512962,1735017090175,-516.04,0.00015616,2]
[346512963,1735017090187,-8307.43,0.00015616,2]
[346512964,1735017090198,-951.65,0.00015616,2]
[346512965,1735017090210,-838.55,0.00015616,2]